[Event "*** Titled Tuesday Blitz"]
[Site "Chess.com"]
[Date "2018.08.07"]
[Round "3"]
[White "Tash_Boy"]
[Black "AquivaRubinstein"]
[Result "0-1"]
[WhiteElo "2570"]
[BlackElo "2403"]
[TimeControl "180+2"]
[EndTime "13:38:37 PDT"]
[Termination "AquivaRubinstein won by checkmate"]

1. e4 {[%clk 0:03:01.9]} 1... e6 {[%clk 0:03:00.1]} 2. d4 {[%clk 0:03:02.2]}
2... d5 {[%clk 0:03:00.5]} 3. Nd2 {[%clk 0:03:03.7]} 3... c5 {[%clk 0:02:59.3]}
4. exd5 {[%clk 0:03:04.3]} 4... Qxd5 {[%clk 0:03:00.1]} 5. Ngf3 {[%clk
0:03:02.6]} 5... cxd4 {[%clk 0:03:01.1]} 6. Bc4 {[%clk 0:03:03.1]} 6... Qd6
{[%clk 0:03:02]} 7. O-O {[%clk 0:03:04.6]} 7... Nf6 {[%clk 0:03:02.5]} 8. Nb3
{[%clk 0:03:05.5]} 8... Nc6 {[%clk 0:03:03.5]} 9. Nbxd4 {[%clk 0:03:05.9]} 9...
Nxd4 {[%clk 0:03:04.5]} 10. Nxd4 {[%clk 0:03:07.8]} 10... a6 {[%clk 0:03:03.8]}
11. Re1 {[%clk 0:03:08.2]} 11... Qc7 {[%clk 0:03:04.2]} 12. Bb3 {[%clk
0:03:04.7]} 12... Bd6 {[%clk 0:03:02.4]} 13. g3 {[%clk 0:02:52.9]} 13... O-O
{[%clk 0:03:00.2]} 14. Bg5 {[%clk 0:02:52]} 14... Nd5 {[%clk 0:02:30]} 15. Qf3
{[%clk 0:02:49.2]} 15... Ne7 {[%clk 0:02:15.4]} 16. c3 {[%clk 0:02:47.4]} 16...
Ng6 {[%clk 0:02:11.4]} 17. Rad1 {[%clk 0:02:45.4]} 17... h6 {[%clk 0:01:58.6]}
18. Bc1 {[%clk 0:02:43.7]} 18... Ne5 {[%clk 0:01:48.5]} 19. Qg2 {[%clk
0:02:40.5]} 19... Rb8 {[%clk 0:01:37.3]} 20. Bc2 {[%clk 0:02:40.4]} 20... b6
{[%clk 0:01:32.9]} 21. Bf4 {[%clk 0:02:39.8]} 21... Bb7 {[%clk 0:01:32.4]} 22.
Be4 {[%clk 0:02:38.7]} 22... Nc4 {[%clk 0:01:25.8]} 23. Bxd6 {[%clk 0:02:29.4]}
23... Nxd6 {[%clk 0:01:25.7]} 24. Bxb7 {[%clk 0:02:30.3]} 24... Nxb7 {[%clk
0:01:16.8]} 25. Nc6 {[%clk 0:02:24.9]} 25... Rbc8 {[%clk 0:01:11.4]} 26. Ne5
{[%clk 0:02:25.2]} 26... Rfd8 {[%clk 0:01:06.9]} 27. Qe4 {[%clk 0:02:13.8]}
27... Nc5 {[%clk 0:01:05.7]} 28. Qf4 {[%clk 0:02:13]} 28... f6 {[%clk
0:00:51.8]} 29. Ng6 {[%clk 0:02:07.6]} 29... Qxf4 {[%clk 0:00:51.5]} 30. Nxf4
{[%clk 0:02:08.2]} 30... Kf7 {[%clk 0:00:43.2]} 31. b4 {[%clk 0:02:03.8]} 31...
Na4 {[%clk 0:00:41.5]} 32. Rxd8 {[%clk 0:01:58.7]} 32... Rxd8 {[%clk 0:00:42.2]}
33. Re3 {[%clk 0:01:57.3]} 33... e5 {[%clk 0:00:41.4]} 34. Ne2 {[%clk
0:01:56.9]} 34... Rd2 {[%clk 0:00:41.5]} 35. a3 {[%clk 0:01:57.2]} 35... Ra2
{[%clk 0:00:35.7]} 36. c4 {[%clk 0:01:57.5]} 36... Rc2 {[%clk 0:00:36.8]} 37. f4
{[%clk 0:01:55.1]} 37... exf4 {[%clk 0:00:31.7]} 38. Nxf4 {[%clk 0:01:55.8]}
38... Rxc4 {[%clk 0:00:32.9]} 39. Nd5 {[%clk 0:01:56.7]} 39... Rd4 {[%clk
0:00:26.3]} 40. Re7+ {[%clk 0:01:56.8]} 40... Kf8 {[%clk 0:00:27.2]} 41. Rd7
{[%clk 0:01:57.2]} 41... b5 {[%clk 0:00:26.8]} 42. Nxf6 {[%clk 0:01:40.2]} 42...
Rc4 {[%clk 0:00:16.6]} 43. Nh5 {[%clk 0:01:37.4]} 43... Rc3 {[%clk 0:00:13.5]}
44. Nxg7 {[%clk 0:01:36.9]} 44... Rxa3 {[%clk 0:00:14.3]} 45. Ne6+ {[%clk
0:01:37.6]} 45... Ke8 {[%clk 0:00:15.5]} 46. Ra7 {[%clk 0:01:35.4]} 46... Nc3
{[%clk 0:00:15.8]} 47. Kg2 {[%clk 0:01:33.7]} 47... Nd5 {[%clk 0:00:16.7]} 48.
h4 {[%clk 0:01:30.4]} 48... Nxb4 {[%clk 0:00:17.6]} 49. g4 {[%clk 0:01:31.1]}
49... Nc6 {[%clk 0:00:17.1]} 50. Rc7 {[%clk 0:01:30.8]} 50... Ne5 {[%clk
0:00:18.1]} 51. g5 {[%clk 0:01:31.9]} 51... hxg5 {[%clk 0:00:18.5]} 52. h5
{[%clk 0:01:23.2]} 52... Ng4 {[%clk 0:00:16.7]} 53. Nxg5 {[%clk 0:01:15.5]}
53... a5 {[%clk 0:00:17.3]} 54. Ne4 {[%clk 0:01:16.2]} 54... b4 {[%clk
0:00:15.9]} 55. Rg7 {[%clk 0:01:15.5]} 55... Ne3+ {[%clk 0:00:17.1]} 56. Kf2
{[%clk 0:01:14.7]} 56... Nf5 {[%clk 0:00:18.3]} 57. Rg5 {[%clk 0:01:14.8]} 57...
Nh6 {[%clk 0:00:13.1]} 58. Rg6 {[%clk 0:01:15.4]} 58... Nf5 {[%clk 0:00:14.2]}
59. Rf6 {[%clk 0:01:16.4]} 59... Ne7 {[%clk 0:00:11.7]} 60. h6 {[%clk
0:01:15.4]} 60... Rh3 {[%clk 0:00:07.3]} 61. Kg2 {[%clk 0:01:15.9]} 61... Rh4
{[%clk 0:00:07.5]} 62. Ng5 {[%clk 0:01:13.4]} 62... Nd5 {[%clk 0:00:06.4]} 63.
Re6+ {[%clk 0:01:11.4]} 63... Kd7 {[%clk 0:00:06.8]} 64. Kg3 {[%clk 0:01:11.3]}
64... Rh5 {[%clk 0:00:06.7]} 65. Rg6 {[%clk 0:01:11.2]} 65... Ne7 {[%clk
0:00:06.5]} 66. Kg4 {[%clk 0:01:02.7]} 66... Nxg6 {[%clk 0:00:07.4]} 67. Kxh5
{[%clk 0:01:03.8]} 67... Nh8 {[%clk 0:00:09.1]} 68. Nf3 {[%clk 0:01:00.8]} 68...
a4 {[%clk 0:00:10.4]} 69. Ne5+ {[%clk 0:00:59.7]} 69... Ke6 {[%clk 0:00:10.9]}
70. Ng6 {[%clk 0:01:00.8]} 70... Nf7 {[%clk 0:00:10.6]} 71. h7 {[%clk 0:01:02]}
71... a3 {[%clk 0:00:11.3]} 72. Nf4+ {[%clk 0:01:02.5]} 72... Kf5 {[%clk
0:00:11.9]} 73. Ne2 {[%clk 0:00:46.3]} 73... Ke4 {[%clk 0:00:09.4]} 74. Kg6
{[%clk 0:00:44.3]} 74... a2 {[%clk 0:00:10.5]} 75. Kxf7 {[%clk 0:00:40.9]} 75...
a1=Q {[%clk 0:00:11.2]} 76. Kg8 {[%clk 0:00:42.4]} 76... Qa8+ {[%clk 0:00:11.5]}
77. Kg7 {[%clk 0:00:43.4]} 77... Qb7+ {[%clk 0:00:12.7]} 78. Kg8 {[%clk
0:00:44.4]} 78... Qc8+ {[%clk 0:00:13.9]} 79. Kg7 {[%clk 0:00:45.2]} 79... Qd7+
{[%clk 0:00:15.1]} 80. Kg8 {[%clk 0:00:44.4]} 80... Qg4+ {[%clk 0:00:15.4]} 81.
Kf7 {[%clk 0:00:42.5]} 81... Qh5+ {[%clk 0:00:16]} 82. Kg8 {[%clk 0:00:41.4]}
82... Qg6+ {[%clk 0:00:16.9]} 83. Kh8 {[%clk 0:00:41.9]} 83... b3 {[%clk
0:00:15.5]} 84. Nc3+ {[%clk 0:00:40.6]} 84... Ke5 {[%clk 0:00:15.1]} 85. Nd5
{[%clk 0:00:26.1]} 85... b2 {[%clk 0:00:11.5]} 86. Ne7 {[%clk 0:00:22.7]} 86...
Qxh7+ {[%clk 0:00:08.7]} 87. Kxh7 {[%clk 0:00:22.8]} 87... b1=Q+ {[%clk
0:00:09.7]} 88. Kg7 {[%clk 0:00:24.2]} 88... Qb7 {[%clk 0:00:10]} 89. Kf8 {[%clk
0:00:22.2]} 89... Ke6 {[%clk 0:00:10.2]} 90. Nc6 {[%clk 0:00:19.1]} 90... Qf7#
{[%clk 0:00:09.4]} 0-1

[Event "*** Titled Tuesday Blitz"]
[Site "Chess.com"]
[Date "2018.08.07"]
[Round "3"]
[White "maciek_92"]
[Black "penguingm1"]
[Result "1/2-1/2"]
[WhiteElo "2723"]
[BlackElo "2823"]
[TimeControl "180+2"]
[EndTime "13:38:46 PDT"]
[Termination "Game drawn - insufficient material"]

1. c4 {[%clk 0:03:01.9]} 1... e6 {[%clk 0:03:01]} 2. Nc3 {[%clk 0:03:02.4]} 2...
d5 {[%clk 0:03:02.1]} 3. d4 {[%clk 0:03:03.3]} 3... Be7 {[%clk 0:03:03.2]} 4.
Nf3 {[%clk 0:03:03.1]} 4... Nf6 {[%clk 0:03:03.4]} 5. Bf4 {[%clk 0:03:04]} 5...
O-O {[%clk 0:03:04.5]} 6. e3 {[%clk 0:03:05.4]} 6... Nbd7 {[%clk 0:03:05.6]} 7.
Bd3 {[%clk 0:03:00.5]} 7... c5 {[%clk 0:03:03.3]} 8. cxd5 {[%clk 0:03:01]} 8...
Nxd5 {[%clk 0:03:04.4]} 9. Nxd5 {[%clk 0:03:01.9]} 9... exd5 {[%clk 0:03:06.3]}
10. O-O {[%clk 0:03:02.9]} 10... c4 {[%clk 0:03:07.2]} 11. Bc2 {[%clk
0:03:01.3]} 11... b5 {[%clk 0:03:08.6]} 12. h3 {[%clk 0:02:59.9]} 12... a5
{[%clk 0:02:24.3]} 13. a3 {[%clk 0:02:28.2]} 13... Bb7 {[%clk 0:02:20.9]} 14.
Ne5 {[%clk 0:01:54]} 14... Nf6 {[%clk 0:02:07.1]} 15. b3 {[%clk 0:01:43.7]}
15... Rc8 {[%clk 0:01:52.9]} 16. a4 {[%clk 0:01:20]} 16... b4 {[%clk 0:01:50.8]}
17. Rc1 {[%clk 0:01:16.2]} 17... Ba6 {[%clk 0:01:49]} 18. Re1 {[%clk 0:01:14.3]}
18... Qb6 {[%clk 0:01:47.1]} 19. Qf3 {[%clk 0:01:04]} 19... Qe6 {[%clk
0:01:09.9]} 20. Bg5 {[%clk 0:00:35.2]} 20... g6 {[%clk 0:00:53.7]} 21. Bh6
{[%clk 0:00:11.4]} 21... Rfd8 {[%clk 0:00:54.5]} 22. g4 {[%clk 0:00:12.1]} 22...
cxb3 {[%clk 0:00:24.4]} 23. Bxb3 {[%clk 0:00:14]} 23... Ne4 {[%clk 0:00:25.8]}
24. Qxe4 {[%clk 0:00:13]} 24... dxe4 {[%clk 0:00:26.9]} 25. Bxe6 {[%clk
0:00:12.7]} 25... fxe6 {[%clk 0:00:27.6]} 26. Nc6 {[%clk 0:00:13.5]} 26... Re8
{[%clk 0:00:24.4]} 27. Nxa5 {[%clk 0:00:14.1]} 27... Bd3 {[%clk 0:00:21.8]} 28.
Nc6 {[%clk 0:00:11.5]} 28... Kf7 {[%clk 0:00:21.4]} 29. Ne5+ {[%clk 0:00:12.2]}
29... Kf6 {[%clk 0:00:19.5]} 30. Nd7+ {[%clk 0:00:09.4]} 30... Kf7 {[%clk
0:00:20.5]} 31. Ne5+ {[%clk 0:00:11.3]} 31... Kg8 {[%clk 0:00:19.6]} 32. Nxd3
{[%clk 0:00:06.4]} 32... exd3 {[%clk 0:00:20.7]} 33. Rcd1 {[%clk 0:00:08.3]}
33... Rc3 {[%clk 0:00:21]} 34. e4 {[%clk 0:00:08.3]} 34... b3 {[%clk 0:00:22.2]}
35. Rd2 {[%clk 0:00:07.9]} 35... Bb4 {[%clk 0:00:20.8]} 36. Rb1 {[%clk
0:00:08.4]} 36... Ba3 {[%clk 0:00:19.6]} 37. a5 {[%clk 0:00:07.3]} 37... b2
{[%clk 0:00:18.2]} 38. Rdxb2 {[%clk 0:00:08.2]} 38... Bxb2 {[%clk 0:00:20.1]}
39. Rxb2 {[%clk 0:00:10.1]} 39... Ra3 {[%clk 0:00:21.6]} 40. Rd2 {[%clk
0:00:10.8]} 40... Rd8 {[%clk 0:00:21.7]} 41. Be3 {[%clk 0:00:10.9]} 41... e5
{[%clk 0:00:21.7]} 42. d5 {[%clk 0:00:10.6]} 42... Kf7 {[%clk 0:00:22.1]} 43.
Bb6 {[%clk 0:00:11.5]} 43... Rc8 {[%clk 0:00:23.4]} 44. d6 {[%clk 0:00:07.4]}
44... Ke6 {[%clk 0:00:24.3]} 45. d7 {[%clk 0:00:08.6]} 45... Kxd7 {[%clk
0:00:23.2]} 46. a6 {[%clk 0:00:10.5]} 46... Rc2 {[%clk 0:00:21.4]} 47. Rd1
{[%clk 0:00:08.8]} 47... d2 {[%clk 0:00:15.2]} 48. Kf1 {[%clk 0:00:10.1]} 48...
Rxa6 {[%clk 0:00:15.9]} 49. Be3 {[%clk 0:00:10.6]} 49... Rd6 {[%clk 0:00:17.2]}
50. Ke2 {[%clk 0:00:11.8]} 50... Ra2 {[%clk 0:00:17.8]} 51. Rxd2 {[%clk
0:00:13.2]} 51... Rdxd2+ {[%clk 0:00:18.6]} 52. Bxd2 {[%clk 0:00:15.1]} 52...
Kc6 {[%clk 0:00:19.6]} 53. Kd3 {[%clk 0:00:14.9]} 53... Ra3+ {[%clk 0:00:19.7]}
54. Bc3 {[%clk 0:00:15.9]} 54... Kc5 {[%clk 0:00:20.8]} 55. Kd2 {[%clk 0:00:14]}
55... Kc4 {[%clk 0:00:17.6]} 56. Bxe5 {[%clk 0:00:15.1]} 56... Rxh3 {[%clk
0:00:19.1]} 57. Ke2 {[%clk 0:00:16.4]} 57... Ra3 {[%clk 0:00:18.5]} 58. Bg3
{[%clk 0:00:16.7]} 58... Kd4 {[%clk 0:00:18.9]} 59. e5 {[%clk 0:00:18.1]} 59...
Ra2+ {[%clk 0:00:12.4]} 60. Kf3 {[%clk 0:00:18.5]} 60... Kd5 {[%clk 0:00:11.9]}
61. Kf4 {[%clk 0:00:18.6]} 61... h6 {[%clk 0:00:12.4]} 62. Kf3 {[%clk
0:00:19.8]} 62... Ra3+ {[%clk 0:00:13.6]} 63. Kg2 {[%clk 0:00:20.9]} 63... Ra4
{[%clk 0:00:14.6]} 64. Kh3 {[%clk 0:00:16.8]} 64... Re4 {[%clk 0:00:15.4]} 65.
f3 {[%clk 0:00:14.1]} 65... Re2 {[%clk 0:00:16]} 66. Bf4 {[%clk 0:00:13.9]}
66... g5 {[%clk 0:00:17.3]} 67. Bg3 {[%clk 0:00:14.8]} 67... Kd4 {[%clk
0:00:17.6]} 68. f4 {[%clk 0:00:15.5]} 68... Kd5 {[%clk 0:00:06.2]} 69. f5 {[%clk
0:00:16.3]} 69... Ra2 {[%clk 0:00:07.5]} 70. e6 {[%clk 0:00:17.1]} 70... Re2
{[%clk 0:00:08.8]} 71. Bc7 {[%clk 0:00:15.2]} 71... Re4 {[%clk 0:00:08.9]} 72.
Kg3 {[%clk 0:00:15.6]} 72... Kc6 {[%clk 0:00:09.3]} 73. Bd8 {[%clk 0:00:15.3]}
73... Kd6 {[%clk 0:00:10.6]} 74. Bf6 {[%clk 0:00:16.4]} 74... Re3+ {[%clk
0:00:10.4]} 75. Kf2 {[%clk 0:00:17.2]} 75... Re4 {[%clk 0:00:11.9]} 76. Kg3
{[%clk 0:00:16]} 76... Re3+ {[%clk 0:00:12.7]} 77. Kg2 {[%clk 0:00:17.3]} 77...
Re4 {[%clk 0:00:13.8]} 78. Kf3 {[%clk 0:00:10.6]} 78... Rf4+ {[%clk 0:00:15]}
79. Kg3 {[%clk 0:00:12.1]} 79... h5 {[%clk 0:00:13.2]} 80. gxh5 {[%clk
0:00:13.1]} 80... Rxf5 {[%clk 0:00:14.4]} 81. e7 {[%clk 0:00:11.5]} 81... Kd7
{[%clk 0:00:15.6]} 82. Bg7 {[%clk 0:00:11.4]} 82... Kxe7 {[%clk 0:00:16.7]} 83.
Kg4 {[%clk 0:00:10.6]} 83... Rd5 {[%clk 0:00:17.8]} 84. h6 {[%clk 0:00:12]}
84... Kf7 {[%clk 0:00:19.2]} 85. Kh5 {[%clk 0:00:13.5]} 85... Rb5 {[%clk
0:00:17.1]} 86. Bd4 {[%clk 0:00:14]} 86... Kg8 {[%clk 0:00:16.4]} 87. Bf6 {[%clk
0:00:12.4]} 87... Kh7 {[%clk 0:00:11.9]} 88. Bxg5 {[%clk 0:00:13]} 88... Rb4
{[%clk 0:00:13.1]} 89. Bf6 {[%clk 0:00:11.8]} 89... Re4 {[%clk 0:00:12.1]} 90.
Bg7 {[%clk 0:00:12.2]} 90... Re6 {[%clk 0:00:11.8]} 91. Kg5 {[%clk 0:00:13.4]}
91... Rg6+ {[%clk 0:00:13]} 92. Kf5 {[%clk 0:00:14.8]} 92... Ra6 {[%clk
0:00:14.9]} 93. Kg5 {[%clk 0:00:15.7]} 93... Ra5+ {[%clk 0:00:15.9]} 94. Kf6
{[%clk 0:00:16.7]} 94... Rh5 {[%clk 0:00:16.6]} 95. Ke6 {[%clk 0:00:17.6]} 95...
Kg6 {[%clk 0:00:15.5]} 96. Ke7 {[%clk 0:00:18.5]} 96... Rf5 {[%clk 0:00:16.4]}
97. Ke6 {[%clk 0:00:19.7]} 97... Rf1 {[%clk 0:00:14.7]} 98. Ke7 {[%clk
0:00:20.2]} 98... Re1+ {[%clk 0:00:16]} 99. Kd6 {[%clk 0:00:21.4]} 99... Kf7
{[%clk 0:00:17.1]} 100. Kd5 {[%clk 0:00:22.3]} 100... Rd1+ {[%clk 0:00:17.8]}
101. Ke4 {[%clk 0:00:22.3]} 101... Rd6 {[%clk 0:00:16.7]} 102. Ke5 {[%clk
0:00:21.8]} 102... Rxh6 {[%clk 0:00:17.8]} 103. Bxh6 {[%clk 0:00:21.7]} 1/2-1/2

[Event "*** Titled Tuesday Blitz"]
[Site "Chess.com"]
[Date "2018.08.07"]
[Round "3"]
[White "NikolaGry"]
[Black "TijanaBlagojevic"]
[Result "1-0"]
[WhiteElo "2524"]
[BlackElo "2356"]
[TimeControl "180+2"]
[EndTime "13:39:10 PDT"]
[Termination "NikolaGry won by resignation"]

1. e4 {[%clk 0:03:01.9]} 1... e5 {[%clk 0:02:59.2]} 2. Nf3 {[%clk 0:03:02.6]}
2... Nc6 {[%clk 0:03:00.3]} 3. c3 {[%clk 0:03:03.2]} 3... Nf6 {[%clk 0:02:58.8]}
4. d3 {[%clk 0:03:03.6]} 4... d5 {[%clk 0:02:59.2]} 5. Nbd2 {[%clk 0:03:03.2]}
5... a5 {[%clk 0:03:00.3]} 6. Be2 {[%clk 0:03:01.5]} 6... Bc5 {[%clk 0:03:00.8]}
7. O-O {[%clk 0:03:01.3]} 7... O-O {[%clk 0:03:01.8]} 8. b3 {[%clk 0:02:59.2]}
8... d4 {[%clk 0:03:02.1]} 9. Bb2 {[%clk 0:02:59.8]} 9... Re8 {[%clk 0:02:52.3]}
10. Rc1 {[%clk 0:02:57.4]} 10... dxc3 {[%clk 0:02:41.5]} 11. Rxc3 {[%clk
0:02:53.6]} 11... Bd4 {[%clk 0:02:41.3]} 12. Nxd4 {[%clk 0:02:44.3]} 12... Nxd4
{[%clk 0:02:43.2]} 13. Nf3 {[%clk 0:02:44.4]} 13... Nxe2+ {[%clk 0:02:33.3]} 14.
Qxe2 {[%clk 0:02:43.6]} 14... Bg4 {[%clk 0:02:35.2]} 15. Rfc1 {[%clk 0:02:35.4]}
15... c6 {[%clk 0:02:34.8]} 16. h3 {[%clk 0:02:35.3]} 16... Bxf3 {[%clk
0:02:31.6]} 17. Qxf3 {[%clk 0:02:36.3]} 17... a4 {[%clk 0:02:32.9]} 18. b4
{[%clk 0:02:35.8]} 18... Qd7 {[%clk 0:02:15.9]} 19. a3 {[%clk 0:02:30.9]} 19...
Rad8 {[%clk 0:02:16.2]} 20. Kf1 {[%clk 0:02:28.2]} 20... Re6 {[%clk 0:02:12.2]}
21. Ke2 {[%clk 0:02:23]} 21... Ne8 {[%clk 0:02:12.3]} 22. Rd1 {[%clk 0:01:17.2]}
22... Nd6 {[%clk 0:02:08.8]} 23. Rc5 {[%clk 0:01:06.9]} 23... f6 {[%clk
0:01:55.3]} 24. d4 {[%clk 0:00:57.8]} 24... exd4 {[%clk 0:01:42.3]} 25. Rxd4
{[%clk 0:00:58.5]} 25... Rde8 {[%clk 0:01:39.2]} 26. e5 {[%clk 0:00:46.6]} 26...
Rxe5+ {[%clk 0:01:39.6]} 27. Rxe5 {[%clk 0:00:47.1]} 27... Rxe5+ {[%clk
0:01:41.5]} 28. Kf1 {[%clk 0:00:47.3]} 28... Qe7 {[%clk 0:01:42.2]} 29. g4
{[%clk 0:00:44.1]} 29... Re1+ {[%clk 0:01:39.3]} 30. Kg2 {[%clk 0:00:44.5]}
30... h6 {[%clk 0:01:34.8]} 31. Qd3 {[%clk 0:00:40]} 31... Nf7 {[%clk
0:01:33.9]} 32. Rd7 {[%clk 0:00:39.6]} 32... Qe4+ {[%clk 0:01:03.3]} 33. Qxe4
{[%clk 0:00:39.5]} 33... Rxe4 {[%clk 0:01:05.2]} 34. Rxb7 {[%clk 0:00:40.2]}
34... Re2 {[%clk 0:01:06.7]} 35. Bd4 {[%clk 0:00:34.6]} 35... Ra2 {[%clk
0:01:05.9]} 36. Rb6 {[%clk 0:00:31.8]} 36... Ne5 {[%clk 0:01:03]} 37. Bxe5
{[%clk 0:00:30.6]} 37... fxe5 {[%clk 0:01:04.9]} 38. Rxc6 {[%clk 0:00:31.4]}
38... Rxa3 {[%clk 0:01:06.3]} 39. Ra6 {[%clk 0:00:29.1]} 39... e4 {[%clk
0:01:05.2]} 40. b5 {[%clk 0:00:28.4]} 40... Ra2 {[%clk 0:01:02.5]} 41. Kg3
{[%clk 0:00:27.4]} 41... Rb2 {[%clk 0:00:56.1]} 42. Rxa4 {[%clk 0:00:25.9]}
42... Rb3+ {[%clk 0:00:56.8]} 43. Kg2 {[%clk 0:00:25.1]} 43... Rxb5 {[%clk
0:00:58.7]} 44. Rxe4 {[%clk 0:00:25.9]} 44... Kf7 {[%clk 0:01:00.3]} 45. h4
{[%clk 0:00:26.5]} 45... g5 {[%clk 0:01:00.2]} 46. h5 {[%clk 0:00:25.6]} 46...
Rb7 {[%clk 0:00:58.1]} 47. Re5 {[%clk 0:00:25.6]} 47... Kg7 {[%clk 0:00:59.4]}
48. Re6 {[%clk 0:00:26.3]} 48... Rf7 {[%clk 0:00:59.5]} 49. Rg6+ {[%clk
0:00:25.9]} 49... Kh7 {[%clk 0:01:00.5]} 50. Rd6 {[%clk 0:00:26.2]} 50... Ra7
{[%clk 0:01:00.6]} 51. Kg3 {[%clk 0:00:26.8]} 51... Kg7 {[%clk 0:01:01.9]} 52.
f3 {[%clk 0:00:27.7]} 52... Rf7 {[%clk 0:01:02.2]} 53. Rd4 {[%clk 0:00:28.2]}
53... Ra7 {[%clk 0:01:03.6]} 54. Kf2 {[%clk 0:00:28.5]} 54... Re7 {[%clk
0:01:01]} 55. Re4 {[%clk 0:00:27.3]} 55... Rb7 {[%clk 0:01:02.2]} 56. Re5 {[%clk
0:00:26.2]} 56... Rc7 {[%clk 0:01:02.7]} 57. Ke3 {[%clk 0:00:25.9]} 57... Ra7
{[%clk 0:01:00.7]} 58. Rd5 {[%clk 0:00:24.5]} 58... Ra3+ {[%clk 0:01:01.4]} 59.
Ke4 {[%clk 0:00:23.8]} 59... Ra7 {[%clk 0:01:02.2]} 60. Rd6 {[%clk 0:00:18.4]}
60... Re7+ {[%clk 0:00:57.8]} 61. Kd4 {[%clk 0:00:19.3]} 61... Rf7 {[%clk
0:00:58.5]} 62. Ke3 {[%clk 0:00:19.6]} 62... Re7+ {[%clk 0:00:59.7]} 63. Kf2
{[%clk 0:00:20.8]} 63... Ra7 {[%clk 0:01:00.6]} 64. Rd2 {[%clk 0:00:20.5]} 64...
Rb7 {[%clk 0:01:01.7]} 65. Ke3 {[%clk 0:00:21]} 65... Re7+ {[%clk 0:01:02.6]}
66. Kd4 {[%clk 0:00:21.5]} 66... Rd7+ {[%clk 0:01:03.6]} 67. Ke3 {[%clk
0:00:21.4]} 67... Re7+ {[%clk 0:01:04.9]} 68. Kf2 {[%clk 0:00:22.5]} 68... Ra7
{[%clk 0:01:05.4]} 69. Rd6 {[%clk 0:00:23.2]} 69... Rb7 {[%clk 0:01:06.5]} 70.
Ke3 {[%clk 0:00:24.2]} 70... Re7+ {[%clk 0:01:06.6]} 71. Kd4 {[%clk 0:00:24.4]}
71... Rf7 {[%clk 0:01:06.3]} 72. Ke4 {[%clk 0:00:25.4]} 72... Re7+ {[%clk
0:01:07.5]} 73. Kf5 {[%clk 0:00:25.5]} 73... Rf7+ {[%clk 0:01:08.6]} 74. Ke4
{[%clk 0:00:22.4]} 74... Re7+ {[%clk 0:01:09.7]} 75. Kd3 {[%clk 0:00:23.3]}
75... Ra7 {[%clk 0:01:10.1]} 76. Rd5 {[%clk 0:00:22.2]} 76... Rf7 {[%clk
0:01:08.9]} 77. Ke4 {[%clk 0:00:22]} 77... Rf4+ {[%clk 0:01:07.2]} 78. Ke3
{[%clk 0:00:21.8]} 78... Rf7 {[%clk 0:01:08.1]} 79. Rf5 {[%clk 0:00:20.6]} 79...
Ra7 {[%clk 0:01:09]} 80. Kd4 {[%clk 0:00:20.6]} 80... Re7 {[%clk 0:01:05.3]} 81.
Kd5 {[%clk 0:00:20.9]} 81... Re1 {[%clk 0:01:05.5]} 82. Re5 {[%clk 0:00:19.8]}
82... Rd1+ {[%clk 0:01:00]} 83. Ke4 {[%clk 0:00:20.1]} 83... Re1+ {[%clk
0:01:01]} 84. Kf5 {[%clk 0:00:20.5]} 84... Ra1 {[%clk 0:00:56.1]} 85. Re7+
{[%clk 0:00:19]} 85... Kf8 {[%clk 0:00:57]} 86. Re6 {[%clk 0:00:17.4]} 86... Kg7
{[%clk 0:00:56.5]} 87. Re7+ {[%clk 0:00:18.2]} 87... Kf8 {[%clk 0:00:57.4]} 88.
Rd7 {[%clk 0:00:17.5]} 88... Ra3 {[%clk 0:00:51.8]} 89. Kg6 {[%clk 0:00:16.3]}
89... Ra6+ {[%clk 0:00:52.9]} 90. Kh7 {[%clk 0:00:17]} 90... Rf6 {[%clk
0:00:53.9]} 91. Rg7 {[%clk 0:00:16.1]} 91... Rxf3 {[%clk 0:00:23.2]} 92. Kxh6
{[%clk 0:00:16.1]} 92... Rf6+ {[%clk 0:00:23.9]} 93. Rg6 {[%clk 0:00:17]} 93...
Kf7 {[%clk 0:00:23]} 94. Kxg5 {[%clk 0:00:13.4]} 94... Rf1 {[%clk 0:00:17.5]}
95. Kh6 {[%clk 0:00:14.3]} 95... Rh1 {[%clk 0:00:17.4]} 96. g5 {[%clk
0:00:15.1]} 96... Rf1 {[%clk 0:00:17.2]} 97. Rg7+ {[%clk 0:00:14.4]} 97... Kf8
{[%clk 0:00:18]} 98. g6 {[%clk 0:00:15.3]} 98... Rg1 {[%clk 0:00:19.1]} 99. Rf7+
{[%clk 0:00:14.6]} 99... Kg8 {[%clk 0:00:19.8]} 100. Rd7 {[%clk 0:00:15.3]}
100... Kf8 {[%clk 0:00:21]} 101. Kh7 {[%clk 0:00:16.2]} 101... Rh1 {[%clk
0:00:21.8]} 102. h6 {[%clk 0:00:17.1]} 102... Ke8 {[%clk 0:00:21.7]} 103. Ra7
{[%clk 0:00:17.7]} 103... Re1 {[%clk 0:00:23.2]} 104. g7 {[%clk 0:00:18.4]}
104... Re7 {[%clk 0:00:24.6]} 105. Rxe7+ {[%clk 0:00:17.7]} 105... Kxe7 {[%clk
0:00:26.5]} 106. g8=Q {[%clk 0:00:18.8]} 1-0